bitfinex/quotes_BTCUSD_20250211
["timestamp","ask_amount","ask_price","bid_price","bid_amount"]
[1739273346292,0.0001066,98219.0,98210.0,0.17694633]
[1739273347382,0.0001066,98219.0,98210.0,0.02421333]
[1739273349422,0.0001066,98219.0,98210.0,0.02221333]
[1739273349641,0.0001066,98219.0,98210.0,0.02021333]
[1739273350044,0.0001066,98219.0,98210.0,0.02221333]
[1739273350446,0.0001066,98219.0,98210.0,0.17494633]
[1739273350685,0.0001066,98219.0,98211.0,0.152731]
[1739273351600,0.0001066,98219.0,98210.0,0.17494633]
[1739273351809,0.0001066,98219.0,98211.0,0.001]
[1739273352472,0.0001066,98219.0,98211.0,0.002]
[1739273353216,0.0001066,98219.0,98212.0,0.03048405]
[1739273354188,0.0001066,98219.0,98212.0,0.10250365]
[1739273354916,0.0001066,98219.0,98212.0,0.10450365]
[1739273355271,0.0001066,98219.0,98212.0,0.10350365]
[1739273355480,0.0001066,98219.0,98212.0,0.10550365]
[1739273373355,0.0001066,98219.0,98212.0,0.10350365]
[1739273373795,0.0001066,98219.0,98212.0,0.10250365]
[1739273374183,0.0011066,98219.0,98212.0,0.10250365]
[1739273374620,0.0001066,98219.0,98212.0,0.10250365]
[1739273374838,0.0011066,98219.0,98212.0,0.10250365]
[1739273375348,0.0001066,98219.0,98212.0,0.10250365]
[1739273375764,0.0011066,98219.0,98212.0,0.10350365]
[1739273376144,0.0011066,98219.0,98212.0,0.10250365]
[1739273377004,0.0001066,98219.0,98212.0,0.10250365]
[1739273377379,0.0011066,98219.0,98212.0,0.10250365]
[1739273377843,0.0001066,98219.0,98212.0,0.10250365]
[1739273378055,0.0001066,98219.0,98210.0,7.211e-05]
[1739273378232,0.152727,98215.0,98210.0,7.211e-05]
[1739273378431,0.152724,98217.0,98210.0,7.211e-05]
[1739273378663,0.152725,98216.0,98212.0,0.001]
[1739273378817,0.203632,98217.0,98210.0,7.211e-05]
[1739273379026,0.152726,98215.0,98210.0,7.211e-05]
[1739273379372,0.05785845,98217.0,98210.0,7.211e-05]
[1739273379373,0.152724,98216.0,98210.0,7.211e-05]
[1739273379575,0.152727,98215.0,98210.0,7.211e-05]
[1739273379747,0.152727,98215.0,98210.0,0.00107211]
[1739273379958,0.152727,98215.0,98210.0,7.211e-05]
[1739273380344,0.282229,98218.0,98210.0,0.00107211]
[1739273380564,0.152724,98216.0,98210.0,0.00107211]
[1739273381086,0.152724,98216.0,98210.0,7.211e-05]
[1739273381319,0.152724,98216.0,98210.0,0.00407211]
[1739273381702,0.152724,98216.0,98210.0,7.211e-05]
[1739273381842,0.152724,98216.0,98210.0,0.00207211]
[1739273382034,0.152724,98216.0,98210.0,0.00307211]
[1739273383639,0.152723,98217.0,98210.0,0.00307211]
[1739273383858,0.29257169,98218.0,98210.0,0.00207211]
[1739273384236,0.153725,98216.0,98210.0,0.00207211]
[1739273384440,0.153725,98216.0,98210.0,7.211e-05]
[1739273384646,0.152725,98216.0,98210.0,7.211e-05]
[1739273384850,0.152724,98216.0,98210.0,7.211e-05]
[1739273386943,0.001,98216.0,98210.0,7.211e-05]
[1739273387128,0.152732,98211.0,98210.0,7.211e-05]
[1739273388361,0.152732,98211.0,98210.0,0.00407211]
[1739273389587,0.152732,98211.0,98210.0,0.00207211]
[1739273389851,0.152732,98211.0,98210.0,7.211e-05]
[1739273390030,0.152732,98211.0,98210.0,0.00107211]
[1739273391221,0.152732,98211.0,98210.0,0.00207211]
[1739273392498,0.152732,98211.0,98210.0,0.00107211]
[1739273392702,0.152732,98211.0,98210.0,7.211e-05]
[1739273393053,0.153732,98211.0,98210.0,7.211e-05]
[1739273393566,0.152732,98211.0,98210.0,7.211e-05]
[1739273393767,0.153732,98211.0,98210.0,7.211e-05]
[1739273394312,0.152732,98211.0,98210.0,7.211e-05]
[1739273394827,0.153732,98211.0,98210.0,7.211e-05]
[1739273396076,0.152732,98211.0,98210.0,7.211e-05]
[1739273396494,0.153732,98211.0,98210.0,7.211e-05]
[1739273396697,0.1538386,98211.0,98210.0,7.211e-05]
[1739273435977,0.24219433,98211.0,98210.0,7.211e-05]
[1739273436424,0.1768386,98211.0,98210.0,7.211e-05]
[1739273436627,0.27934225,98211.0,98210.0,7.211e-05]
[1739273436832,0.36144225,98211.0,98210.0,7.211e-05]
[1739273437032,0.42054225,98211.0,98210.0,7.211e-05]
[1739273437229,0.60195881,98211.0,98210.0,7.211e-05]
[1739273437463,1.03676246,98211.0,98210.0,7.211e-05]
[1739273437679,1.03576246,98211.0,98210.0,7.211e-05]
[1739273437817,1.03676246,98211.0,98210.0,7.211e-05]
[1739273438469,1.03576246,98211.0,98210.0,7.211e-05]
[1739273438639,1.03776246,98211.0,98210.0,0.00107211]
[1739273439615,1.03676246,98211.0,98210.0,0.00107211]
[1739273440024,1.03776246,98211.0,98210.0,0.00107211]
[1739273446556,1.12925736,98211.0,98210.0,0.00107211]
[1739273448414,1.0978408,98211.0,98210.0,0.00107211]
[1739273448980,1.12916086,98211.0,98210.0,0.00107211]
[1739273449660,1.12816086,98211.0,98210.0,0.00107211]
[1739273450006,1.12916086,98211.0,98210.0,0.00207211]
[1739273450228,1.12816086,98211.0,98210.0,0.00107211]
[1739273450429,1.03666596,98211.0,98210.0,0.00107211]
[1739273450624,1.05066596,98211.0,98210.0,0.00207211]
[1739273451445,1.0193459,98211.0,98210.0,0.00207211]
[1739273459917,1.0093459,98211.0,98210.0,0.00207211]
[1739273460413,1.0193459,98211.0,98210.0,0.00207211]
[1739273462434,1.0506724,98211.0,98210.0,0.00207211]
[1739273468897,0.94816875,98211.0,98210.0,0.00207211]
[1739273471210,0.86606875,98211.0,98210.0,0.00207211]
[1739273472042,0.81696875,98211.0,98210.0,0.00207211]
[1739273472244,0.80696875,98211.0,98210.0,0.00207211]
[1739273472450,0.81696875,98211.0,98210.0,0.00207211]
[1739273472902,0.80696875,98211.0,98210.0,0.00207211]
[1739273473164,0.81696875,98211.0,98210.0,0.00207211]
[1739273474412,0.83248272,98211.0,98210.0,0.00207211]
[1739273481087,0.92397762,98211.0,98210.0,0.00207211]
[1739273482923,0.91397762,98211.0,98210.0,0.00207211]
[1739273483110,0.89846365,98211.0,98210.0,0.00207211]
[1739273483319,0.90846365,98211.0,98210.0,0.00207211]
[1739273484775,0.81696875,98211.0,98210.0,0.00207211]
[1739273508378,0.80696875,98211.0,98210.0,0.00207211]
[1739273508578,0.81696875,98211.0,98210.0,0.00207211]
[1739273510263,0.83846931,98211.0,98210.0,0.00207211]
[1739273511217,0.65696875,98211.0,98210.0,0.00207211]
[1739273511429,0.62396875,98211.0,98210.0,0.00207211]
[1739273512365,0.78296875,98211.0,98210.0,0.00107211]
[1739273512975,0.78196875,98211.0,98210.0,7.211e-05]
[1739273513150,0.78596875,98211.0,98210.0,0.00107211]
[1739273513756,0.79896875,98211.0,98210.0,0.00207211]
[1739273513972,0.44534225,98211.0,98210.0,0.00207211]
[1739273523687,0.1698386,98211.0,98210.0,0.00207211]
[1739273523940,0.1698386,98211.0,98210.0,0.08527211]
[1739273524709,0.1568386,98211.0,98210.0,0.08427211]
[1739273524909,0.1658386,98211.0,98210.0,0.08427211]
[1739273525340,0.1678386,98211.0,98210.0,0.08427211]
[1739273526796,0.1528386,98211.0,98210.0,0.08327211]
[1739273526942,0.1538386,98211.0,98210.0,0.08327211]
[1739273527126,0.1598386,98211.0,98210.0,0.08427211]
[1739273527536,0.1538386,98211.0,98210.0,0.08327211]
[1739273527959,0.1578386,98211.0,98210.0,0.08327211]
[1739273530044,0.1578386,98211.0,98210.0,7.211e-05]
[1739273532707,0.1808386,98211.0,98210.0,7.211e-05]
[1739273563877,0.1578386,98211.0,98210.0,7.211e-05]
[1739273568198,0.1538386,98211.0,98210.0,7.211e-05]
[1739273568400,0.1528386,98211.0,98210.0,7.211e-05]
[1739273568639,0.1578386,98211.0,98210.0,7.211e-05]
[1739273571319,0.1538386,98211.0,98210.0,7.211e-05]
[1739273571500,0.1528386,98211.0,98210.0,7.211e-05]
[1739273571710,0.1538386,98211.0,98210.0,7.211e-05]
[1739273572068,0.1558386,98211.0,98210.0,7.211e-05]
[1739273574780,0.0031066,98211.0,98210.0,0.12597211]
[1739273575198,0.0031066,98211.0,98210.0,0.12699025]
[1739273576480,0.0011066,98211.0,98210.0,0.12699025]
[1739273576870,0.0001066,98211.0,98210.0,0.12699025]
[1739273577258,0.0001066,98211.0,98210.0,0.13199025]
[1739273577461,0.0001066,98211.0,98210.0,0.28370511]
[1739273581690,0.0001066,98211.0,98210.0,0.13097211]
[1739273594803,0.1528386,98211.0,98210.0,0.00507211]
[1739273596116,0.1528386,98211.0,98210.0,0.00207211]
[1739273596528,0.1538386,98211.0,98210.0,0.00207211]
[1739273596938,0.1538386,98211.0,98210.0,7.211e-05]
[1739273598355,0.2361386,98211.0,98210.0,7.211e-05]
[1739273600440,0.2463281,98211.0,98210.0,7.211e-05]
[1739273601334,0.2361386,98211.0,98210.0,7.211e-05]
[1739273603914,0.1538386,98211.0,98210.0,7.211e-05]
[1739273649385,0.0011066,98211.0,98210.0,7.211e-05]
[1739273650503,0.0011066,98211.0,98210.0,7.211e-05]
[1739273650659,0.0011066,98211.0,98210.0,0.01914305]
[1739273651700,0.0001066,98211.0,98210.0,0.01914305]
[1739273651903,0.0001066,98211.0,98210.0,0.1728942]
[1739273652100,0.0001066,98211.0,98210.0,0.24989415]
[1739273652259,0.0001066,98211.0,98210.0,0.24887605]
[1739273652904,0.0001066,98211.0,98210.0,0.09814305]
[1739273653119,0.0001066,98211.0,98210.0,0.10214305]
[1739273654177,0.0001066,98211.0,98210.0,0.25487605]
[1739273661111,0.0001066,98211.0,98210.0,0.4031797]
[1739273661928,0.0001066,98211.0,98210.0,0.3991797]
[1739273662250,0.0011066,98211.0,98210.0,0.4081797]
[1739273663818,0.0011066,98211.0,98210.0,0.4061797]
[1739273664045,0.0011066,98211.0,98210.0,0.4101797]
[1739273664595,0.0011066,98211.0,98210.0,0.4114867]
[1739273676790,0.0011066,98211.0,98210.0,0.2886867]
[1739273677333,0.0011066,98211.0,98210.0,0.03345005]
[1739273677748,0.1538386,98211.0,98210.0,0.03345005]
[1739273678150,0.0011066,98211.0,98210.0,0.03345005]
[1739273678359,0.1538386,98211.0,98210.0,0.03345005]
[1739273678584,0.1538386,98211.0,98210.0,0.01437911]
[1739273679080,0.0011066,98211.0,98210.0,0.01437911]
[1739273679299,0.1538386,98211.0,98210.0,0.01437911]
[1739273679745,0.0011066,98211.0,98210.0,0.01437911]
[1739273679980,0.1538386,98211.0,98210.0,0.01437911]
[1739273680793,0.1538386,98211.0,98210.0,0.00537911]
[1739273680794,0.1528386,98211.0,98210.0,0.00537911]
[1739273681000,0.1528386,98211.0,98210.0,0.00137911]
[1739273681914,0.16289174,98211.0,98210.0,0.00137911]
[1739273683310,0.24249174,98211.0,98210.0,0.00137911]
[1739273685074,0.24549174,98211.0,98210.0,0.00137911]
[1739273685566,0.24849174,98211.0,98210.0,0.00137911]
[1739273687004,0.25749174,98211.0,98210.0,0.00237911]
[1739273687373,0.24849174,98211.0,98210.0,0.00137911]
[1739273687589,0.25749174,98211.0,98210.0,0.00237911]
[1739273695534,0.17789174,98211.0,98210.0,0.00237911]
[1739273700120,0.36979539,98211.0,98210.0,0.00237911]
[1739273700364,0.54279539,98211.0,98210.0,0.00237911]
[1739273700840,0.59019539,98211.0,98210.0,0.00237911]
[1739273701089,0.91249539,98211.0,98210.0,0.00237911]
[1739273701352,0.91249539,98211.0,98210.0,1e-08]
[1739273701594,1.01499904,98211.0,98210.0,1e-08]
[1739273703256,1.04631815,98211.0,98210.0,1e-08]
[1739273703485,0.279552,98198.0,98195.0,0.00022386]
[1739273703706,0.38212773,98198.0,98195.0,0.00022386]
[1739273703937,0.55512773,98198.0,98195.0,0.00022386]
[1739273705080,0.55512773,98198.0,98197.0,0.00122386]
[1739273705379,0.56512773,98198.0,98197.0,0.00122386]
[1739273705609,0.68263138,98198.0,98197.0,0.00122386]
[1739273705784,0.68563138,98198.0,98197.0,0.00122386]
[1739273706350,0.66763138,98198.0,98197.0,0.00022386]
[1739273706750,0.67063138,98198.0,98197.0,0.00122386]
[1739273708343,1.00793138,98198.0,98197.0,0.00222386]
[1739273709564,1.00793138,98198.0,98197.0,1e-08]
[1739273709999,1.00793138,98198.0,98188.0,0.00022386]
[1739273710000,0.254666,98189.0,98188.0,1e-08]
[1739273710233,0.35716965,98189.0,98188.0,1e-08]
[1739273711274,0.39829467,98189.0,98188.0,1e-08]
[1739273711519,0.40629467,98189.0,98188.0,0.00100001]
[1739273711772,0.36516965,98189.0,98188.0,0.00100001]
[1739273712330,0.36916965,98189.0,98188.0,0.00100001]
[1739273715805,0.44026965,98189.0,98188.0,0.00100001]
[1739273716590,0.41726965,98189.0,98188.0,0.00100001]
[1739273720864,0.314766,98189.0,98188.0,0.00100001]
[1739273721211,0.41726965,98189.0,98188.0,0.00100001]
[1739273722401,0.5986733,98189.0,98188.0,0.00100001]
[1739273727330,0.1528,98167.0,98166.0,0.04469256]
[1739273728550,0.15387204,98167.0,98166.0,0.05169256]
[1739273728929,0.15387204,98167.0,98166.0,0.05469256]
[1739273729760,0.15387204,98167.0,98166.0,0.05491642]
[1739273731281,0.00107204,98167.0,98166.0,0.05491642]
[1739273731905,0.00107204,98167.0,98166.0,0.06008506]
[1739273732685,0.15387204,98167.0,98166.0,0.06008506]
[1739273734103,0.15387204,98167.0,98166.0,0.05491642]
[1739273734234,0.15387204,98167.0,98166.0,0.06018511]
[1739273735249,0.15387204,98167.0,98166.0,0.05491642]
[1739273735250,0.00107204,98167.0,98166.0,0.05491642]
[1739273735540,0.00107204,98167.0,98166.0,0.06018511]
[1739273735740,0.15387204,98167.0,98166.0,0.06018511]
[1739273736870,0.00107204,98167.0,98166.0,0.06018511]
[1739273737500,0.00107204,98167.0,98166.0,0.06120372]
[1739273737712,0.00107204,98167.0,98166.0,0.21298711]
[1739273737921,0.00107204,98167.0,98166.0,0.06018511]
[1739273738571,0.00107204,98167.0,98166.0,0.21298711]
[1739273739409,0.00107204,98167.0,98166.0,0.06018511]
[1739273739980,0.00107204,98167.0,98166.0,0.21298711]
[1739273740386,0.00107204,98167.0,98166.0,0.06018511]
[1739273741226,0.00117864,98167.0,98166.0,0.06018511]
[1739273742410,0.00117864,98167.0,98166.0,0.21298711]
[1739273742612,0.00117864,98167.0,98166.0,0.06018511]
[1739273743321,0.00117864,98167.0,98166.0,0.21298711]
[1739273743535,0.00117864,98167.0,98166.0,0.06018511]
[1739273744351,0.00117864,98167.0,98166.0,0.21298711]
[1739273745001,0.00117864,98167.0,98166.0,0.39429076]
[1739273746060,0.00117864,98167.0,98166.0,0.39129076]
[1739273746262,0.00017864,98167.0,98166.0,0.40439557]
[1739273746464,0.00017864,98167.0,98166.0,0.40939557]
[1739273746711,0.00117864,98167.0,98166.0,0.42139557]
[1739273748700,0.00117864,98167.0,98166.0,0.74299557]
[1739273774925,0.0001066,98189.0,98188.0,0.152768]
[1739273775136,0.0001066,98189.0,98188.0,0.15795521]
[1739273775137,0.00017871,98189.0,98188.0,0.15795521]
[1739273775884,0.00017871,98189.0,98188.0,0.00518721]
[1739273776096,0.00217871,98189.0,98183.0,0.2037]
[1739273776346,0.00017871,98189.0,98184.0,0.00518137]
[1739273776546,0.00017871,98189.0,98184.0,0.15795437]
[1739273776883,0.00017871,98189.0,98188.0,0.002]
[1739273777060,0.00017871,98189.0,98185.0,0.00518131]
[1739273777235,0.00017871,98189.0,98180.0,0.203705]
[1739273777440,0.00017871,98189.0,98186.0,0.00518124]
[1739273777697,0.00017871,98189.0,98187.0,0.00518118]
[1739273777899,0.00017871,98189.0,98180.0,0.203705]
[1739273778046,0.00017871,98189.0,98182.0,0.152777]
[1739273778247,0.00017871,98189.0,98183.0,0.00518143]
[1739273778449,0.00017871,98189.0,98188.0,0.002]
[1739273778683,0.00017871,98189.0,98188.0,0.00718111]
[1739273778887,0.00017871,98189.0,98188.0,0.00518111]
[1739273779089,0.00017871,98189.0,98183.0,0.152775]
[1739273779308,0.00017871,98189.0,98184.0,0.00518137]
[1739273780098,0.00017871,98189.0,98188.0,0.004]
[1739273780302,0.00017871,98189.0,98188.0,0.01118111]
[1739273780503,0.15294471,98189.0,98188.0,0.01118111]
[1739273780705,0.15294471,98189.0,98188.0,0.006]
[1739273781188,0.00017871,98189.0,98188.0,0.006]
[1739273781494,0.15294471,98189.0,98188.0,0.006]
[1739273781788,0.15294471,98189.0,98180.0,0.152779]
[1739273781995,0.15294471,98189.0,98184.0,0.002]
[1739273782198,0.15294471,98189.0,98184.0,0.006]
[1739273782408,0.15294471,98189.0,98185.0,0.00518114]
[1739273782831,0.00017871,98189.0,98176.0,0.203715]
[1739273783019,0.152768,98188.0,98186.0,0.00518177]
[1739273783221,0.00017871,98189.0,98188.0,0.002]
[1739273783544,0.00017871,98189.0,98180.0,0.152779]
[1739273783733,0.15294471,98189.0,98185.0,0.003]
[1739273784180,0.15294471,98189.0,98186.0,0.0051859]
[1739273784782,0.00017871,98189.0,98186.0,0.0051859]
[1739273785207,0.15294471,98189.0,98186.0,0.0051859]
[1739273785413,0.15294471,98189.0,98181.0,0.152779]
[1739273785619,0.15294471,98189.0,98187.0,0.00518584]
[1739273785820,0.00017871,98189.0,98182.0,0.152777]
[1739273786022,0.00017871,98189.0,98188.0,0.00518577]
[1739273786426,0.15294471,98189.0,98188.0,0.00518577]
[1739273787012,0.15294471,98189.0,98181.0,0.153778]
[1739273787376,0.15294471,98189.0,98182.0,0.00518616]
[1739273787761,0.00017871,98189.0,98182.0,0.00518616]
[1739273788199,0.15294471,98189.0,98188.0,0.001]
[1739273788583,0.15294471,98189.0,98181.0,0.152778]
[1739273788798,0.15294471,98189.0,98175.0,0.203717]
[1739273788799,0.00017871,98189.0,98175.0,0.203717]
[1739273789016,0.00117871,98189.0,98182.0,0.00519913]
[1739273789194,0.00117871,98189.0,98182.0,0.152777]
[1739273789436,0.00117871,98189.0,98183.0,0.00519907]
[1739273789778,0.00017871,98189.0,98183.0,0.00519907]
[1739273789985,0.00117871,98189.0,98183.0,0.15797407]
[1739273790187,0.00117871,98189.0,98181.0,0.152778]
[1739273790408,0.00117871,98189.0,98184.0,0.005199]
[1739273790590,0.00117871,98189.0,98183.0,0.152775]
[1739273790785,0.00117871,98189.0,98185.0,0.00519894]
[1739273790988,0.00117871,98189.0,98184.0,0.005199]
[1739273791295,0.15294471,98189.0,98180.0,0.152779]
[1739273791525,0.00117871,98189.0,98171.0,0.203726]
[1739273791798,0.00117871,98189.0,98182.0,0.152777]
[1739273791934,0.00017871,98189.0,98182.0,0.152777]
[1739273792136,0.00117871,98189.0,98183.0,0.00519907]
[1739273792781,0.00017871,98189.0,98182.0,0.152777]
[1739273792983,0.00117871,98189.0,98184.0,0.005199]
[1739273793235,0.00117871,98189.0,98183.0,0.15797407]
[1739273793427,0.00117871,98189.0,98180.0,0.203705]
[1739273793428,0.00117871,98189.0,98185.0,0.00519894]
[1739273793632,0.00117871,98189.0,98184.0,0.005199]
[1739273793837,0.00117871,98189.0,98186.0,0.00519888]
[1739273794043,0.00117871,98189.0,98185.0,0.00519894]
[1739273794210,0.00117871,98189.0,98187.0,0.00519881]
[1739273794414,0.00117871,98189.0,98186.0,0.00519888]
[1739273794664,0.00117871,98189.0,98188.0,0.15796675]
[1739273794875,0.00117871,98189.0,98188.0,0.152768]
[1739273795081,0.00017871,98189.0,98188.0,0.15796675]
[1739273795283,0.00317871,98189.0,98188.0,0.15796675]
[1739273795699,0.00017871,98189.0,98188.0,0.15796675]
[1739273796100,0.00017871,98189.0,98188.0,0.16196675]
[1739273796338,0.00017871,98189.0,98188.0,0.16396675]
[1739273800480,0.00017871,98189.0,98188.0,0.1649851]
[1739273800618,0.00017871,98189.0,98188.0,0.16396675]
[1739273801224,0.00017871,98189.0,98188.0,0.1649851]
[1739273805203,0.00017871,98189.0,98188.0,0.16396675]
[1739273805818,0.00017871,98189.0,98188.0,0.16498503]
[1739273810499,0.00017871,98189.0,98188.0,0.16396675]
[1739273821752,0.00017871,98189.0,98188.0,0.16498503]
[1739273822093,0.00017871,98189.0,98188.0,0.24828503]
[1739273822293,0.00017871,98189.0,98188.0,0.24726675]
[1739273825094,0.00017871,98189.0,98188.0,0.16396675]
[1739273825311,0.00017871,98189.0,98188.0,0.2674887]
[1739273825614,0.00017871,98189.0,98188.0,0.2664704]
[1739273845715,0.00017871,98189.0,98188.0,0.01119875]
[1739273846238,0.00017871,98189.0,98188.0,0.006]
[1739273851184,0.00017871,98189.0,98188.0,0.002]
[1739273851386,0.00117871,98189.0,98188.0,0.002]
[1739273852224,0.00117871,98189.0,98180.0,0.15278]
[1739273852499,0.00117871,98189.0,98188.0,0.001]
[1739273853103,0.00017871,98189.0,98188.0,0.001]
[1739273853333,0.00017871,98189.0,98180.0,0.15278]
[1739273853491,0.00017871,98189.0,98188.0,0.002]
[1739273853861,0.00017871,98189.0,98180.0,0.15278]
[1739273854217,0.00017871,98189.0,98188.0,0.001]
[1739273854439,0.00017871,98189.0,98188.0,0.002]
[1739273854719,0.00017871,98189.0,98188.0,0.001]
[1739273855999,0.00017871,98189.0,98180.0,0.15378]
[1739273856173,0.00017871,98189.0,98180.0,0.001]
[1739273856384,0.00017871,98189.0,98181.0,0.1579125]
[1739273857118,0.00017871,98189.0,98188.0,0.001]
[1739273857312,0.00017871,98189.0,98181.0,0.1579125]
[1739273857574,0.00017871,98189.0,98181.0,0.153778]
[1739273857749,0.00017871,98189.0,98182.0,0.0051521]
[1739273859467,0.00017871,98189.0,98182.0,0.0061521]
[1739273859875,0.20369,98188.0,98182.0,0.0051521]
[1739273860027,0.152768,98188.0,98182.0,0.0051521]
[1739273860226,0.152768,98188.0,98176.0,0.152786]
[1739273860469,0.00017871,98189.0,98176.0,0.152786]
[1739273860470,0.152771,98186.0,98176.0,0.152786]
[1739273860684,0.15394471,98189.0,98177.0,0.005152]
[1739273860905,0.00117871,98189.0,98177.0,0.005152]
[1739273861081,0.15294471,98189.0,98174.0,0.152789]
[1739273861284,0.15294471,98189.0,98178.0,0.15793393]
[1739273861641,0.002,98188.0,98179.0,0.00515187]
[1739273862080,0.002,98188.0,98179.0,0.15793287]
[1739273862503,0.154768,98188.0,98179.0,0.00515187]
[1739273862706,0.154768,98188.0,98178.0,0.152783]
[1739273862911,0.154768,98188.0,98179.0,0.00515187]
[1739273863116,0.152768,98188.0,98179.0,0.00515187]
[1739273864360,0.154768,98188.0,98179.0,0.00515187]
[1739273865059,0.15277,98187.0,98177.0,0.152785]
[1739273865264,0.002,98188.0,98180.0,0.0051518]
[1739273865467,0.152769,98187.0,98177.0,0.152783]
[1739273865860,0.154768,98188.0,98178.0,0.00515193]
[1739273866236,0.152769,98187.0,98178.0,0.152783]
[1739273866641,0.002,98188.0,98165.0,0.203737]
[1739273866642,0.002,98188.0,98179.0,0.00515187]
[1739273866862,0.00017871,98189.0,98179.0,0.00515187]
[1739273867039,0.15277,98187.0,98178.0,0.152783]
[1739273867237,0.15277,98187.0,98180.0,0.0051518]
[1739273867450,0.15294471,98189.0,98180.0,0.15278]
[1739273867614,0.15294471,98189.0,98181.0,0.00515174]
[1739273867814,0.154768,98188.0,98181.0,0.00515174]
[1739273868233,0.152771,98186.0,98175.0,0.203716]
[1739273868448,0.15277,98187.0,98182.0,0.00515168]
[1739273868706,0.15277,98187.0,98178.0,0.152783]
[1739273869065,0.152773,98185.0,98178.0,0.152783]
[1739273869273,0.152773,98185.0,98179.0,0.00515187]
[1739273870533,0.00017871,98189.0,98179.0,0.00515187]
[1739273870674,0.152774,98184.0,98179.0,0.00515187]
[1739273870878,0.152774,98184.0,98179.0,0.001]
[1739273871123,0.152774,98184.0,98180.0,0.0051518]
[1739273871627,0.152771,98186.0,98180.0,0.0051518]
[1739273871846,0.152772,98186.0,98180.0,0.0051518]
[1739273873023,0.00017871,98189.0,98180.0,0.0061518]
[1739273873237,0.00017871,98189.0,98180.0,0.001]
[1739273873671,0.15294571,98189.0,98180.0,0.15278]
[1739273874034,0.001,98186.0,98181.0,0.00516339]
[1739273874397,0.152769,98188.0,98178.0,0.20371]
[1739273874597,0.152769,98188.0,98182.0,0.00516333]
[1739273874794,0.152769,98188.0,98179.0,0.152782]
[1739273875149,0.15594571,98189.0,98183.0,0.00516327]
[1739273875316,0.15594571,98189.0,98179.0,0.152781]
[1739273875516,0.15594571,98189.0,98184.0,0.0051632]
[1739273875721,0.15594571,98189.0,98179.0,0.152781]
[1739273875936,0.15294571,98189.0,98185.0,0.00516314]
[1739273876123,0.001,98186.0,98179.0,0.152781]
[1739273876729,0.152768,98188.0,98179.0,0.152781]
[1739273876942,0.152768,98188.0,98180.0,0.00516346]
[1739273877890,0.001,98186.0,98178.0,0.152782]
[1739273878549,0.001,98186.0,98179.0,0.00516352]
[1739273879556,0.203694,98187.0,98173.0,0.203721]
[1739273879557,0.152779,98181.0,98173.0,0.203721]
[1739273879989,0.152776,98183.0,98177.0,0.152785]
[1739273880184,0.203701,98184.0,98174.0,0.00516384]
[1739273880359,0.152778,98182.0,98174.0,0.00516384]
[1739273880560,0.152778,98182.0,98177.0,0.152785]
[1739273880791,0.152778,98182.0,98178.0,0.00516359]
[1739273880984,0.00017871,98189.0,98178.0,0.00516359]
[1739273881186,0.203694,98187.0,98178.0,0.00516359]
[1739273881385,0.152777,98183.0,98179.0,0.00516352]
[1739273881547,0.00017871,98189.0,98175.0,0.152787]
[1739273881779,0.152777,98182.0,98176.0,0.15794971]
[1739273882832,0.203695,98186.0,98178.0,0.152782]
[1739273883247,0.203695,98186.0,98179.0,0.00516352]
[1739273883248,0.15278,98180.0,98179.0,0.00516352]
[1739273883666,0.0759,98186.0,98176.0,0.001]
[1739273883667,0.203706,98181.0,98176.0,0.001]
[1739273883887,0.152784,98178.0,98176.0,0.001]
[1739273884094,0.152785,98178.0,98166.0,0.07562386]
[1739273884301,0.001,98186.0,98179.0,0.002]
[1739273884634,0.152777,98182.0,98180.0,0.00516346]
[1739273884799,0.152779,98181.0,98180.0,0.00516346]
[1739273885502,0.15278,98180.0,98179.0,0.002]
[1739273885909,0.152783,98179.0,98176.0,0.002]
[1739273886087,0.20369,98188.0,98176.0,0.001]
[1739273886292,0.152783,98178.0,98177.0,0.00516365]
[1739273886604,0.152783,98178.0,98172.0,0.152792]
[1739273886820,0.152783,98178.0,98169.0,0.203728]
[1739273886821,0.152784,98178.0,98173.0,0.00516391]
[1739273887279,0.152784,98178.0,98172.0,0.152792]
[1739273887437,0.152784,98178.0,98174.0,0.00516384]
[1739273887622,0.152784,98178.0,98172.0,0.152792]
[1739273887623,0.152784,98178.0,98176.0,0.004]
[1739273887825,0.35648,98182.0,98176.0,0.004]
[1739273888035,0.152784,98178.0,98177.0,0.00516365]
[1739273888934,0.152785,98177.0,98176.0,0.004]
[1739273889140,0.152785,98177.0,98168.0,0.203732]
[1739273889335,0.152789,98174.0,98173.0,0.002]
[1739273889535,0.152789,98174.0,98172.0,0.004]
[1739273889909,0.152789,98174.0,98173.0,0.00520052]
[1739273890359,0.152789,98174.0,98168.0,0.152798]
[1739273890523,0.152789,98175.0,98173.0,0.00520052]
[1739273890730,0.152789,98175.0,98169.0,0.152797]
[1739273890932,0.152789,98175.0,98174.0,0.00520268]
[1739273891136,0.15279,98174.0,98168.0,0.003]
[1739273891544,0.15279,98174.0,98168.0,0.155799]
[1739273891741,0.15279,98174.0,98169.0,0.00520356]
[1739273891957,0.203714,98177.0,98169.0,0.00520356]
[1739273892176,0.152792,98173.0,98169.0,0.00520356]
[1739273892385,0.152789,98175.0,98169.0,0.00520356]
[1739273892554,0.203717,98176.0,98169.0,0.00520356]
[1739273892761,0.152791,98174.0,98169.0,0.00520356]
[1739273893129,0.152787,98176.0,98169.0,0.16299956]
[1739273893307,0.152789,98175.0,98169.0,0.16699956]
[1739273893643,0.15279,98174.0,98169.0,0.00520356]
[1739273894052,0.15279,98174.0,98169.0,0.01620356]
[1739273894256,0.15279,98174.0,98170.0,0.00520397]
[1739273894499,0.15279,98174.0,98169.0,0.007]
[1739273894692,0.152786,98176.0,98171.0,0.00520391]
[1739273894905,0.10190407,98180.0,98170.0,0.152795]
[1739273894906,0.152789,98175.0,98170.0,0.00520397]
[1739273895080,0.203713,98177.0,98171.0,0.152794]
[1739273895294,0.152787,98176.0,98170.0,0.152795]
[1739273895495,0.203713,98177.0,98172.0,0.0052066]
[1739273895696,0.10190407,98180.0,98169.0,0.003]
[1739273895928,0.152792,98173.0,98169.0,0.003]
[1739273896132,0.203717,98175.0,98169.0,0.006]
[1739273896352,0.152793,98172.0,98171.0,0.003]
[1739273896761,0.152799,98168.0,98167.0,0.00022386]
[1739273899218,0.152799,98168.0,98167.0,0.00122386]
[1739273899430,0.152795,98171.0,98167.0,0.00122386]
[1739273899647,0.152795,98171.0,98167.0,0.00022386]
[1739273900060,0.152795,98171.0,98167.0,0.00122386]
[1739273900265,0.09158318,98181.0,98167.0,0.00122386]
[1739273900451,0.152795,98171.0,98167.0,0.00122386]
[1739273900655,0.152795,98171.0,98167.0,0.00022386]
[1739273900875,0.153795,98171.0,98167.0,0.00022386]
[1739273901250,0.152796,98170.0,98167.0,0.00022386]